lending/lending_fUSD_20240703
["ID","MTS","AMOUNT","RATE_DAILY","PERIOD"]
[330975657,1719981040696,-5026.68182309,0.00015,2]
[330975672,1719981044091,-433938.53998831,0.00015,2]
[330975711,1719981121601,-893.72616291,0.000138,2]
[330975712,1719981121643,-803.80963153,0.000138,2]
[330975713,1719981121680,-828.51968047,0.000138,2]
[330975714,1719981121718,-413.53112769,0.000138,2]
[330975715,1719981121789,-867.54923149,0.000138,2]
[330975716,1719981121826,-893.72616291,0.000138,2]
[330975721,1719982053092,8211.36046356,0.00011199,2]
[330975723,1719982134020,-250.0,0.0001312,2]
[330975725,1719982134054,-227.12084219,0.00013128,2]
[330975728,1719982134085,-150.0,0.00013227,2]
[330975729,1719982134116,-360.62256066,0.00013515,2]
[330975732,1719982134151,-639.37743934,0.00013515,2]
[330975733,1719982134416,-155.65180658,0.00013516,2]
[330975734,1719982134449,-133.2977868,0.00013574,2]
[330975753,1719982232228,-184.38,0.0001317,2]
[330975754,1719982232237,-277.92,0.00013249,2]
[330975756,1719982232246,-277.92,0.00013285,2]
[330975758,1719982232255,-219.49503245,0.00013321,2]
[330975762,1719982232383,-58.42496755,0.00013321,2]
[330975763,1719982232393,-277.92,0.00013358,2]
[330975764,1719982232402,-277.92,0.00013394,2]
[330975765,1719982232411,-277.92,0.0001343,2]
[330975766,1719982232420,-277.92,0.00013467,2]
[330975767,1719982232430,-3394.98990535,0.00013472,2]
[330975768,1719982232440,-888.96784191,0.00013472,2]
[330975769,1719982232450,-202.29661142,0.00013503,2]
[330975770,1719982232463,-75.62338858,0.00013503,2]
[330975771,1719982232473,-277.92,0.00013539,2]
[330975772,1719982232482,-520.51131707,0.00013543,2]
[330975773,1719982232491,-168.97473863,0.00013543,2]
[330975774,1719982232500,-227.12084219,0.00013543,2]
[330975775,1719982232509,-277.92,0.00013576,2]
[330975776,1719982232519,-277.92,0.00013612,2]
[330975777,1719982232530,-277.92,0.00013648,2]
[330975778,1719982232540,-277.92,0.00013685,2]
[330975779,1719982232551,-182.95,0.00013699,2]
[330975780,1719982232560,-200.0,0.00013699,2]
[330975781,1719982232569,-277.92,0.00013721,2]
[330975782,1719982232579,-271.19831004,0.00013736,2]
[330975783,1719982232589,-155.0,0.00013736,2]
[330975784,1719982232600,-277.92,0.00013757,2]
[330975785,1719982232611,-1500.0,0.00013759,2]
[330975786,1719982232621,-277.92,0.00013794,2]
[330975787,1719982232631,-150.0,0.00013799,2]
[330975788,1719982232640,-258.764,0.000138,2]
[330975789,1719982232650,-3767.9409,0.000138,2]
[330975790,1719982232659,-277.92,0.0001383,2]
[330975791,1719982232668,-1341.73620512,0.00013849,2]
[330975792,1719982232679,-277.92,0.00013866,2]
[330975793,1719982232688,-410.54192372,0.0001389,2]
[330975794,1719982232700,-911.68697628,0.0001389,2]
[330975795,1719982232710,-499.99,0.0001389,2]
[330975796,1719982232719,-1230.27652826,0.00013899,2]
[330975797,1719982232735,-1269.72347174,0.00013899,2]
[330975798,1719982232745,-1282.76489043,0.00013899,2]
[330975799,1719982232753,-1517.6786,0.000139,2]
[330975800,1719982232763,-486.3734,0.000139,2]
[330975801,1719982232773,-39384.42327951,0.000139,2]
[330975802,1719982232784,-3398.02074401,0.000139,2]
[330975803,1719982232795,-1898.3477175,0.000139,2]
[330975804,1719982232806,-979.38,0.000139,2]
[330975812,1719982238330,-504.5623695,0.000139,2]
[330975813,1719982238342,-859.3705174,0.000139,2]
[330975814,1719982238529,-723.61641763,0.000139,2]
[330975815,1719982238540,-597.24,0.000139,2]
[330975816,1719982238574,-1770.920198,0.000139,2]
[330975817,1719982238585,-14514.67675645,0.000139,2]
[330975818,1719982238594,-366.62136337,0.000139,2]
[330975819,1719982238603,-277.92,0.00013903,2]
[330975820,1719982238612,-6504.07410595,0.00013919,2]
[330975821,1719982238622,-277.92,0.00013939,2]
[330975823,1719982238632,-3975.51,0.00013973,2]
[330975825,1719982238641,-2000.0,0.00013973,3]
[330975827,1719982238650,-40467.05741736,0.0001399,2]
[330975829,1719982238661,-847.10164695,0.0001399,2]
[330975831,1719982238673,-2002.25010518,0.0001399,2]
[330975833,1719982238686,-854.68196747,0.0001399,2]
[330975836,1719982238698,-5828.90886304,0.0001399,2]
[330975838,1719982238707,-175.20875585,0.0001399,2]
[330975840,1719982238716,-500.0,0.00013999,2]
[330975842,1719982238726,-500.0,0.00013999,2]
[330975844,1719982238736,-500.0,0.00013999,2]
[330975846,1719982238746,-500.0,0.00013999,2]
[330975848,1719982238756,-500.0,0.00013999,2]
[330975850,1719982238766,-500.0,0.00013999,2]
[330975852,1719982238778,-500.0,0.00013999,2]
[330975854,1719982238788,-190.61852379,0.00013999,2]
[330975856,1719982238798,-500.0,0.00013999,2]
[330975858,1719982238808,-500.0,0.00013999,2]
[330975860,1719982238818,-500.0,0.00013999,2]
[330975862,1719982238828,-500.0,0.00013999,2]
[330975864,1719982238838,-638.76171415,0.00013999,2]
[330975866,1719982238847,-500.0,0.00013999,2]
[330975868,1719982238857,-500.0,0.00013999,2]
[330975870,1719982238867,-520.81450652,0.00013999,2]
[330975872,1719982238876,-500.0,0.00013999,2]
[330975874,1719982238886,-500.0,0.00013999,2]
[330975876,1719982238896,-500.0,0.00013999,2]
[330975878,1719982238906,-500.0,0.00013999,2]
[330975880,1719982238916,-500.0,0.00013999,2]
[330975882,1719982238926,-500.0,0.00013999,2]
[330975884,1719982238936,-500.0,0.00013999,2]
[330975887,1719982238946,-500.0,0.00013999,2]
[330975889,1719982238955,-500.0,0.00013999,2]
[330975891,1719982238965,-525.95124238,0.00013999,2]
[330975892,1719982238974,-500.0,0.00013999,2]
[330975894,1719982238985,-599.21318755,0.00013999,2]
[330975896,1719982238995,-500.0,0.00013999,2]
[330975898,1719982239006,-500.0,0.00013999,2]
[330975900,1719982239016,-500.0,0.00013999,2]
[330975902,1719982239026,-500.0,0.00013999,2]
[330975905,1719982239039,-196.59777371,0.00013999,2]
[330975906,1719982239055,-500.0,0.00013999,2]
[330975907,1719982239065,-500.0,0.00013999,2]
[330975908,1719982239076,-500.0,0.00013999,2]
[330975909,1719982239087,-500.0,0.00013999,2]
[330975910,1719982239098,-500.0,0.00013999,2]
[330975911,1719982239109,-500.0,0.00013999,2]
[330975912,1719982239120,-500.0,0.00013999,2]
[330975913,1719982239133,-500.0,0.00013999,2]
[330975914,1719982239143,-500.0,0.00013999,2]
[330975915,1719982239155,-500.0,0.00013999,2]
[330975916,1719982239166,-500.0,0.00013999,2]
[330975917,1719982239176,-500.0,0.00013999,2]
[330975918,1719982239187,-500.0,0.00013999,2]
[330975919,1719982239199,-500.0,0.00013999,2]
[330975920,1719982239210,-500.0,0.00013999,2]
[330975921,1719982239221,-500.0,0.00013999,2]
[330975922,1719982239234,-500.0,0.00013999,2]
[330975923,1719982239245,-500.0,0.00013999,2]
[330975924,1719982239255,-500.0,0.00013999,2]
[330975925,1719982239266,-500.0,0.00013999,2]
[330975926,1719982239281,-500.0,0.00013999,2]
[330975927,1719982239292,-500.0,0.00013999,2]
[330975928,1719982239302,-500.0,0.00013999,2]
[330975929,1719982239312,-500.0,0.00013999,2]
[330975930,1719982239323,-500.0,0.00013999,2]
[330975931,1719982239334,-200.0,0.00013999,2]
[330975932,1719982239347,-500.0,0.00013999,2]
[330975933,1719982239357,-500.0,0.00013999,2]
[330975934,1719982239368,-500.0,0.00013999,2]
[330975935,1719982239379,-500.0,0.00013999,2]
[330975936,1719982239390,-500.0,0.00013999,2]
[330975937,1719982239400,-500.0,0.00013999,2]
[330975938,1719982239411,-500.0,0.00013999,2]
[330975939,1719982239422,-500.0,0.00013999,2]
[330975940,1719982239432,-500.0,0.00013999,2]
[330975941,1719982239443,-500.0,0.00013999,2]
[330975942,1719982239454,-500.0,0.00013999,2]
[330975943,1719982239464,-500.0,0.00013999,2]
[330975944,1719982239474,-500.0,0.00013999,2]
[330975945,1719982239487,-500.0,0.00013999,2]
[330975946,1719982239497,-500.0,0.00013999,2]
[330975947,1719982239508,-500.0,0.00013999,2]
[330975948,1719982239518,-500.0,0.00013999,2]
[330975949,1719982239529,-500.0,0.00013999,2]
[330975950,1719982239539,-500.0,0.00013999,2]
[330975951,1719982239550,-500.0,0.00013999,2]
[330975952,1719982239563,-500.0,0.00013999,2]
[330975953,1719982239574,-500.0,0.00013999,2]
[330975954,1719982239585,-500.0,0.00013999,2]
[330975955,1719982239595,-307.98720152,0.00013999,2]
[330975956,1719982239605,-500.0,0.00013999,2]
[330975957,1719982239616,-891.19945386,0.00013999,2]
[330975958,1719982239626,-500.0,0.00013999,2]
[330975959,1719982239636,-500.0,0.00013999,2]
[330975960,1719982239647,-269.37996336,0.00013999,2]
[330975961,1719982239657,-891.19945386,0.00013999,2]
[330975962,1719982239667,-891.19945386,0.00013999,2]
[330975963,1719982239678,-891.19945386,0.00013999,2]
[330975964,1719982239689,-891.19945386,0.00013999,2]
[330975965,1719982239700,-891.19945386,0.00013999,2]
[330975966,1719982239710,-891.19945386,0.00013999,2]
[330975967,1719982239720,-891.19945386,0.00013999,2]
[330975968,1719982239734,-891.19945386,0.00013999,2]
[330975969,1719982239744,-891.19945386,0.00013999,2]
[330975970,1719982239756,-891.19945386,0.00013999,2]
[330975971,1719982239767,-891.19945386,0.00013999,2]
[330975972,1719982239777,-891.19945386,0.00013999,2]
[330975973,1719982239787,-891.19945386,0.00013999,2]
[330975974,1719982239798,-80.3503141,0.00013999,2]
[330975977,1719982242391,-810.84913976,0.00013999,2]
[330975978,1719982242400,-15.48239672,0.00013999,2]
[330975979,1719982242412,-647.02185779,0.00013999,2]
[330975980,1719982242424,-228.69519935,0.00013999,2]
[330975981,1719982242434,-891.19945386,0.00013999,2]
[330975982,1719982242444,-891.19945386,0.00013999,2]
[330975983,1719982242454,-891.19945386,0.00013999,2]
[330975984,1719982242463,-891.19945386,0.00013999,2]
[330975985,1719982242473,-891.19945386,0.00013999,2]
[330975986,1719982242486,-891.19945386,0.00013999,2]
[330975987,1719982242496,-891.19945386,0.00013999,2]
[330975988,1719982242505,-891.19945386,0.00013999,2]
[330975989,1719982242514,-891.19945386,0.00013999,2]
[330975990,1719982242524,-891.19945386,0.00013999,2]
[330975991,1719982242533,-891.19945386,0.00013999,2]
[330975992,1719982242543,-891.19945386,0.00013999,2]
[330975993,1719982242552,-891.19945386,0.00013999,2]
[330975994,1719982242564,-891.19945386,0.00013999,2]
[330975995,1719982242576,-891.19945386,0.00013999,2]
[330975996,1719982242587,-891.19945386,0.00013999,2]
[330975997,1719982242598,-891.19945386,0.00013999,2]
[330975998,1719982242609,-891.19945386,0.00013999,2]
[330975999,1719982242619,-891.19945386,0.00013999,2]
[330976000,1719982242629,-891.19945386,0.00013999,2]
[330976001,1719982242639,-891.19945386,0.00013999,2]
[330976002,1719982242650,-891.19945386,0.00013999,2]
[330976003,1719982242660,-891.19945386,0.00013999,2]
[330976004,1719982242670,-891.19945386,0.00013999,2]
[330976005,1719982242681,-874.74654087,0.00013999,2]
[330976006,1719982242691,-874.74654087,0.00013999,2]
[330976007,1719982242702,-874.74654087,0.00013999,2]
[330976008,1719982242712,-874.74654087,0.00013999,2]
[330976009,1719982242722,-874.74654087,0.00013999,2]
[330976010,1719982242732,-874.74654087,0.00013999,2]
[330976011,1719982242742,-874.74654087,0.00013999,2]
[330976012,1719982242752,-874.74654087,0.00013999,2]
[330976013,1719982242762,-874.74654087,0.00013999,2]
[330976014,1719982242775,-874.74654087,0.00013999,2]
[330976015,1719982242785,-874.74654087,0.00013999,2]
[330976016,1719982242795,-874.74654087,0.00013999,2]
[330976017,1719982242806,-874.74654087,0.00013999,2]
[330976018,1719982242816,-16991.25058254,0.00014,2]
[330976019,1719982242852,-1012.74981404,0.00014,2]
[330976020,1719982242916,-416.7009503,0.00014,2]
[330976021,1719982242929,-1488.10295814,0.00014,2]
[330976022,1719982242941,-48401.83236625,0.00014,2]
[330976023,1719982242971,-902.61714176,0.00014,2]
[330976024,1719982242984,-44046.7941281,0.00014,2]
[330976025,1719982242995,-6756.23360402,0.00014,2]
[330976026,1719982243007,-4608.46810061,0.00014,2]
[330976041,1719982243430,-608087.63302834,0.00014,2]
[330976043,1719982243440,-464.87601972,0.00014,2]
[330976045,1719982243449,-297.89525012,0.00014099,2]
[330976046,1719982243459,-155.70463608,0.00014099,2]
[330976047,1719982243471,-181.44669515,0.00014124,2]
[330976048,1719982243484,-170.75,0.00014154,2]
[330976049,1719982243494,-13077.37,0.0001422,2]
[330976050,1719982243504,-250.0,0.0001422,2]
[330976051,1719982243514,-170.73,0.00014224,2]
[330976052,1719982243524,-168.84,0.0001453,2]
[330976053,1719982243534,-168.84,0.00014595,2]
[330976054,1719982243545,-168.84,0.00014662,2]
[330976055,1719982243557,-500.0,0.00014702,2]
[330976056,1719982243568,-503.59893184,0.00014702,2]
[330976057,1719982243578,-500.0,0.00014702,2]
[330976058,1719982243588,-168.84,0.00014728,2]
[330976059,1719982243598,-6504.07410586,0.00014734,2]
[330976060,1719982243608,-1282.76489039,0.00014799,2]
[330976061,1719982243619,-1182.065252,0.000149,2]
[330976062,1719982243628,-100000.0,0.000149,2]
[330976063,1719982243638,-1000.0,0.000149,2]
[330976064,1719982243648,-269.67300913,0.000149,2]
[330976065,1719982243658,-171.805303,0.000149,2]
[330976066,1719982243667,-151.0,0.000149,2]
[330976067,1719982243677,-151.0,0.000149,2]
[330976068,1719982243688,-171.805303,0.000149,2]
[330976069,1719982243699,-151.0,0.000149,2]
[330976070,1719982243709,-151.0,0.000149,2]
[330976071,1719982243719,-151.0,0.000149,2]
[330976072,1719982243728,-150.50133858,0.000149,2]
[330976073,1719982243740,-238.88373904,0.000149,2]
[330976074,1719982243750,-493.18992781,0.000149,2]
[330976075,1719982243760,-2631.99486146,0.00014999,2]
[330976076,1719982243771,-500.0,0.00014999,2]
[330976077,1719982243782,-398.74831256,0.00014999,2]
[330976078,1719982243792,-500.0,0.00014999,2]
[330976079,1719982243803,-500.0,0.00014999,2]
[330976080,1719982243812,-500.0,0.00014999,2]
[330976081,1719982243822,-500.0,0.00014999,2]
[330976082,1719982243832,-500.0,0.00014999,2]
[330976083,1719982243841,-500.0,0.00014999,2]
[330976084,1719982243851,-500.0,0.00014999,2]
[330976085,1719982243860,-546.7308326,0.00014999,2]
[330976086,1719982243870,-190.87634606,0.00014999,2]
[330976087,1719982243880,-500.0,0.00014999,2]
[330976088,1719982243890,-500.0,0.00014999,2]
[330976089,1719982243899,-500.0,0.00014999,2]
[330976090,1719982243909,-500.0,0.00014999,2]
[330976091,1719982243919,-500.0,0.00014999,2]
[330976092,1719982243928,-500.0,0.00014999,2]
[330976093,1719982243938,-500.0,0.00014999,2]
[330976094,1719982243947,-500.0,0.00014999,2]
[330976095,1719982243956,-394.10729993,0.00014999,2]
[330976096,1719982243966,-500.0,0.00014999,2]
[330976098,1719982243976,-500.0,0.00014999,2]
[330976099,1719982243986,-500.0,0.00014999,2]
[330976101,1719982243995,-500.0,0.00014999,2]
[330976102,1719982244005,-500.0,0.00014999,2]
[330976103,1719982244014,-500.0,0.00014999,2]
[330976104,1719982244023,-500.0,0.00014999,2]
[330976105,1719982244033,-561.64047993,0.00014999,2]
[330976107,1719982244049,-500.0,0.00014999,2]
[330976109,1719982244059,-500.0,0.00014999,2]
[330976111,1719982244068,-448.59892825,0.00014999,2]
[330976113,1719982244079,-166419.17294501,0.00015,2]
[330976119,1719982244343,-2164.83372952,0.00015,2]
[330976120,1719982244358,-270.00257877,0.00015,2]
[330976121,1719982244376,-19533.2278011,0.00015,2]
[330976122,1719982244389,-144037.96250551,0.00015,2]
[330976123,1719982244400,-5000.0,0.00015,2]
[330976124,1719982244410,-737.1110252,0.00015,2]
[330976125,1719982244423,-284163.4664576,0.00015,2]
[330976126,1719982244435,-486.64475688,0.00015,2]
[330976127,1719982244461,-462029.79197176,0.00015,2]
[330976128,1719982244478,-1963.95623651,0.00015,2]
[330976129,1719982246500,-983.86902031,0.00013899,2]
[330976130,1719982246512,-415.0817497,0.00013899,2]
[330976131,1719982246521,-1022.48426943,0.00015,2]
[330976132,1719982246576,-1011.6724071,0.00015,2]
[330976133,1719982246675,-20310.62909321,0.00015,2]
[330976134,1719982262933,-239277.23425285,0.00015,2]
[330976135,1719982262943,-151.0,0.00015,2]
[330976136,1719982262951,-151.0,0.00015,2]
[330976137,1719982262960,-151.0,0.00015,2]
[330976138,1719982262970,-276.596501,0.00015,2]
[330976139,1719982262979,-666.92855,0.00015,2]
[330976140,1719982262988,-171.805303,0.00015,2]
[330976141,1719982262997,-171.805303,0.00015,2]
[330976142,1719982263008,-151.0,0.00015,2]
[330976143,1719982263017,-151.0,0.00015,2]
[330976144,1719982263026,-171.805303,0.00015,2]
[330976145,1719982263035,-171.805303,0.00015,2]
[330976146,1719982263045,-159.531547,0.00015,2]
[330976147,1719982263058,-151.0,0.00015,2]
[330976148,1719982263067,-259.445788,0.00015,2]
[330976149,1719982263077,-151.0,0.00015,2]
[330976150,1719982263088,-151.0,0.00015,2]
[330976151,1719982263102,-151.0,0.00015,2]
[330976152,1719982263111,-151.0,0.00015,2]
[330976153,1719982263120,-151.0,0.00015,2]
[330976154,1719982263129,-243.288124,0.00015,2]
[330976155,1719982263140,-151.0,0.00015,2]
[330976156,1719982263150,-2549.632847,0.00015,2]
[330976157,1719982263160,-2549.632847,0.00015,2]
[330976158,1719982263170,-2549.632847,0.00015,2]
[330976159,1719982263180,-2549.632847,0.00015,2]
[330976160,1719982263191,-240.0,0.00015082,2]
[330976161,1719982263201,-1000.0,0.00015204,2]
[330976162,1719982263211,-1257.0,0.000153,3]
[330976163,1719982263221,-1061.53799165,0.00015399,2]
[330976164,1719982263230,-321.67386559,0.00015479,2]
[330976165,1719982263240,-250.5916271,0.00015479,2]
[330976166,1719982263249,-11483.0,0.000155,5]
[330976167,1719982263260,-155.0,0.00015535,2]
[330976168,1719982263269,-181.84491386,0.00015535,2]
[330976169,1719982263278,-155.0,0.00015535,2]
[330976170,1719982263288,-6504.07410586,0.0001555,2]
[330976171,1719982263298,-155.34756387,0.00015579,2]
[330976172,1719982263308,-1282.76489039,0.00015699,2]
[330976173,1719982263319,-266.54453422,0.00015832,2]
[330976174,1719982263328,-215.4,0.00015959,2]
[330976175,1719982263337,-500.0,0.00016346,2]
[330976176,1719982263347,-500.0,0.00016346,2]
[330976177,1719982263357,-6504.07410586,0.00016365,2]
[330976178,1719982263366,-188.55618567,0.0001639,2]
[330976179,1719982263375,-384.0,0.0001649,2]
[330976180,1719982263384,-1759.69864808,0.00016566,2]
[330976181,1719982263396,-171.805303,0.00016599,2]
[330976182,1719982263406,-271.763018,0.00016599,2]
[330976183,1719982263416,-171.805303,0.00016599,2]
[330976184,1719982263425,-169.159426,0.00016599,2]
[330976185,1719982263435,-151.0,0.00016599,2]
[330976186,1719982263446,-1282.76489039,0.00016599,2]
[330976187,1719982263457,-204.0,0.0001663,2]
[330976188,1719982263466,-1000.0,0.00016894,2]
[330976189,1719982263476,-204.0,0.0001697,2]
[330976190,1719982263486,-6504.07410586,0.00017181,2]
[330976191,1719982263496,-977.0,0.00017205,2]
[330976192,1719982263507,-204.0,0.000173,2]
[330976193,1719982263516,-151.0,0.000174,2]
[330976194,1719982263525,-1282.76489039,0.00017499,2]
[330976195,1719982263539,-204.0,0.0001764,2]
[330976196,1719982263548,-526.28304125,0.00017703,2]
[330976197,1719982263557,-204.0,0.0001797,2]
[330976198,1719982263566,-500.0,0.0001799,2]
[330976199,1719982263575,-500.0,0.0001799,2]
[330976200,1719982263585,-6504.07410586,0.00017996,2]
[330976201,1719982263594,-370.00548798,0.00018,2]
[330976202,1719982263603,-614.0,0.00018021,2]
[330976203,1719982263613,-5077.11720753,0.00018081,2]
[330976204,1719982263622,-3551.28890012,0.00018132,2]
[330976205,1719982263631,-204.0,0.0001831,2]
[330976206,1719982263640,-1282.76489039,0.000184,2]
[330976207,1719982263650,-150.50133856,0.0001845,2]
[330976208,1719982263659,-238.88373903,0.0001845,2]
[330976209,1719982263668,-315.93186495,0.00018503,2]
[330976210,1719982263679,-175.43885404,0.00018563,2]
[330976211,1719982263689,-1000.0,0.00018583,2]
[330976212,1719982263701,-152.68336597,0.00018584,2]
[330976213,1719982263711,-151.69453534,0.00018591,2]
[330976214,1719982263721,-150.0,0.00018592,2]
[330976215,1719982263732,-150.0,0.00018592,2]
[330976216,1719982263741,-152.83410141,0.00018594,2]
[330976217,1719982263752,-175.43885404,0.00018622,2]
[330976218,1719982263762,-204.0,0.0001864,2]
[330976219,1719982263772,-315.93186495,0.00018641,2]
[330976220,1719982263781,-315.93186495,0.00018659,2]
[330976221,1719982263790,-150.0,0.00018671,2]
[330976222,1719982263800,-171.805303,0.00018689,2]
[330976223,1719982263810,-171.805303,0.00018689,2]
[330976224,1719982263819,-151.0,0.00018689,2]
[330976225,1719982263829,-175.43885404,0.00018709,2]
[330976226,1719982263838,-154.87527334,0.00018715,2]
[330976227,1719982263847,-150.0,0.00018751,2]
[330976228,1719982263857,-646.38295816,0.00018751,2]
[330976229,1719982263866,-155.8604434,0.00018782,2]
[330976230,1719982263875,-164.99438064,0.00018793,2]
[330976231,1719982263884,-153.03527398,0.00018801,2]
[330976232,1719982263894,-315.93186495,0.00018804,2]
[330976233,1719982263903,-6504.07410586,0.00018812,2]
[330976234,1719982263913,-155.17151179,0.00018818,2]
[330976235,1719982263922,-150.0,0.0001883,2]
[330976236,1719982263932,-175.43885404,0.00018839,2]
[330976237,1719982263941,-152.68336597,0.00018849,2]
[330976238,1719982263951,-156.59,0.00018849,30]
[330976239,1719982263960,-151.04690993,0.00018852,2]
[330976240,1719982263970,-646.38295816,0.00018858,2]
[330976241,1719982263980,-153.3152539,0.00018863,2]
[330976242,1719982263990,-632.14232024,0.00018869,2]
[330976243,1719982263999,-289.57,0.000189,2]
[330976244,1719982264012,-289.57,0.000189,2]
[330976245,1719982264021,-289.57,0.000189,2]
[330976246,1719982264031,-289.57,0.000189,2]
[330976247,1719982264044,-289.57,0.000189,2]
[330976248,1719982264056,-289.57,0.000189,2]
[330976249,1719982264134,-289.57,0.000189,2]
[330976250,1719982264144,-289.57,0.000189,2]
[330976251,1719982264153,-289.57,0.000189,2]
[330976252,1719982264163,-289.57,0.000189,2]
[330976253,1719982264174,-289.57,0.000189,2]
[330976254,1719982264183,-289.57,0.000189,2]
[330976255,1719982264193,-289.57,0.000189,2]
[330976256,1719982264203,-289.57,0.000189,2]
[330976257,1719982264212,-289.57,0.000189,2]
[330976258,1719982264221,-289.57,0.000189,2]
[330976259,1719982264230,-289.57,0.000189,2]
[330976260,1719982264239,-289.57,0.000189,2]
[330976261,1719982264250,-289.57,0.000189,2]
[330976262,1719982264261,-289.57,0.000189,2]
[330976263,1719982264270,-289.57,0.000189,2]
[330976264,1719982264279,-289.57,0.000189,2]
[330976265,1719982264288,-289.57,0.000189,2]
[330976266,1719982264297,-289.57,0.000189,2]
[330976267,1719982264306,-289.57,0.000189,2]
[330976268,1719982264315,-289.57,0.000189,2]
[330976269,1719982264324,-289.57,0.000189,2]
[330976270,1719982264334,-289.57,0.000189,2]
[330976271,1719982264343,-150.0,0.0001891,2]
[330976272,1719982264353,-2549.632847,0.0001891,2]
[330976273,1719982264363,-2549.632847,0.0001891,2]
[330976274,1719982264373,-153.3152539,0.00018938,2]
[330976275,1719982264383,-175.43885404,0.00018943,2]
[330976276,1719982264393,-231.28867886,0.0001896,2]
[330976277,1719982264402,-153.90874848,0.00018968,2]
[330976278,1719982264411,-151.69453534,0.00018971,2]
[330976279,1719982264420,-204.0,0.0001898,2]
[330976280,1719982264430,-632.14232024,0.00018986,2]
[330976281,1719982264439,-150.0,0.00018989,2]
[330976282,1719982264448,-175.43885404,0.00018991,2]
[330976283,1719982264458,-300.0,0.00019,2]
[330976284,1719982264468,-153.3152539,0.00019011,2]
[330976285,1719982264477,-152.68336597,0.00019021,2]
[330976286,1719982264487,-315.93186495,0.00019044,2]
[330976287,1719982264498,-153.3152539,0.00019049,2]
[330976288,1719982264508,-154.82210955,0.00019054,2]
[330976289,1719982264517,-151.04690993,0.00019055,2]
[330976290,1719982264526,-231.28867886,0.0001906,2]
[330976291,1719982264536,-315.93186495,0.00019061,2]
[330976292,1719982264545,-150.0,0.00019068,2]
[330976293,1719982264553,-500.0,0.00019086,2]
[330976294,1719982264563,-154.87527334,0.00019141,2]
[330976295,1719982264572,-153.90874848,0.00019143,2]
[330976296,1719982264582,-646.38295816,0.00019146,2]
[330976297,1719982264591,-150.0,0.00019148,2]
[330976298,1719982264600,-632.14232024,0.00019151,2]
[330976299,1719982264609,-250.0,0.00019178,2]
[330976300,1719982264618,-175.43885404,0.00019183,2]
[330976301,1719982264627,-159.58343704,0.00019183,2]
[330976302,1719982264637,-154.82210955,0.00019214,2]
[330976303,1719982264646,-150.0,0.00019227,4]
[330976304,1719982264655,-369.10201211,0.00019229,2]
[330976305,1719982264664,-791.86312456,0.00019229,2]
[330976306,1719982264673,-384.98145214,0.00019259,2]
[330976307,1719982264682,-523.7195419,0.00019299,2]
[330976308,1719982264693,-1282.76489039,0.000193,2]
[330976309,1719982264702,-150.0,0.00019307,4]
[330976310,1719982264711,-204.0,0.0001931,2]
[330976311,1719982264720,-153.3152539,0.00019311,2]
[330976312,1719982264730,-154.82210955,0.00019333,2]
[330976313,1719982264739,-152.26339483,0.00019341,2]
[330976314,1719982264748,-646.38295816,0.00019345,2]
[330976315,1719982264757,-304.23744085,0.0001935,2]
[330976316,1719982264766,-255.59801172,0.00019354,2]
[330976317,1719982264774,-153.3152539,0.00019359,2]
[330976318,1719982264783,-384.98145214,0.00019363,2]
[330976319,1719982264793,-154.27660404,0.00019376,2]
[330976320,1719982264802,-151.0669482,0.00019384,2]